Workbook

Sheet Tabelle1
B2: Optimales Produktionsprogramm | L2: Portici1!
B3: nach relativen Deckungsbeiträgen | G3: (bis 5 Produkte)
C4: Stück- | D4: variable | E4: absoluter | F4: Arbeitszeit | G4: relativer | I4: mögliche | J4: vertragliche | L4: Hinweise
B5: Produkte | C5: preise | D5: Stückkosten | E5: Deckungsbeitrag | F5: Min/Stück | G5: Deckungsbeitrag | H5: Rang | I5: Absatzmenge | J5: Mindestmenge | L5: Klicken Sie auf "Eingabe" und geben Sie die
B6: A | C6: 1.4 | D6: 0.4 | E6: =C6-D6 -> 1 | F6: 4 | G6: =IF(C6>0,E6/F6,0) -> 0.25 | H6: =RANK(G6,$G$6:$G$10,0) -> 5 | I6: 12000 | J6: 3000 | L6: Daten, für bis zu 5 verschiedene Produkte, zur
B7: B | C7: 2.4 | D7: 0.8 | E7: =C7-D7 -> 1.6 | F7: 6 | G7: =IF(C7>0,E7/F7,0) -> 0.2666666667 | H7: =RANK(G7,$G$6:$G$10,0) -> 4 | I7: 2000 | J7: 0 | L7: Ermittlung des optimalen Produktions-
B8: C | C8: 3.4 | D8: 1.2 | E8: 2.2 | F8: 8 | G8: 0.275 | H8: 3 | I8: 8000 | J8: 0 | L8: programms und des daraus resultierenden
B9: D | C9: 4.4 | D9: 1.6 | E9: 2.8 | F9: 10 | G9: 0.28 | H9: 2 | I9: 8000 | J9: 0 | L9: Betriesergebnisses ein.
B10: E | C10: 5.4 | D10: 2 | E10: 3.4 | F10: 12 | G10: 0.2833333333 | H10: 1 | I10: 4000 | J10: 0
L11: Der Wert in der grünen Zelle J32 ist ein Kontrollwert
B12: Gesamtzeit/Stunden: | D12: 3800 | E12: Auslastung in %: | F12: 90 | G12: Nettoarbeitszeit: | H12: =(D12*F12)/100 -> 3420 | I12: fixe Kosten: | J12: 40000 | L12: zur Analyse von Abweichungen zwischen
L13: Nettoarbeitszeit und Gesamtzeit. Er muss 0 sein.
B14: Produkte, sortiert nach Rang | D14: Mengen | F14: Arbeitszeit Minuten/Stück | G14: Arbeitszeit für | H14: Arbeitszeit Restmenge/Stunden | L14: Die Werte für die Arbeitszeiten sind gerundet, werden
G15: Mindestmengen | H15: notwendige | I15: Produktions- | J15: Gesamt- | L15: aber als ganze Zahlen ausgewiesen. Daher kann es zu
B16: Rang | C16: Produkt | G16: in Stunden | H16: Zeit | I16: zeit | J16: zeit | L16: kleineren Abweichungen bei der Zeitaddition kommen.
B17: 1 | C17: =IF($H$6=1,$B$6,IF($H$7=1,$B$7,IF($H$8=1,$B$8,IF($H$9=1,$B$9,$B$10)))) -> E | D17: Absatzmenge | E17: =IF(C17="A",$I$6,IF(C17="B",$I$7,IF(C17="C",$I$8,IF(C17="D",$I$9,$I$10)))) -> 4000 | F17: =IF(C17="A",$F$6,IF(C17="B",$F$7,IF(C17="C",$F$8,IF(C17="D",$F$9,$F$10)))) -> 12 | L17: Wenn die Kapazität zur Produktion der Mindestmengen
D18: Mindestmenge | E18: =IF(C17="A",$J$6,IF(C17="B",$J$7,IF(C17="C",$J$8,IF(C17="D",$J$9,$J$10)))) -> 0 | G18: =(E18*F17)/60 -> 0 | L18: nicht ausreicht, wird dies in den Zellen B33 - J33 angezeigt
D19: Restmenge | E19: =E17-E18 -> 4000 | H19: =(E19*F17)/60 -> 800 | I19: =IF(I32<0,0,IF(H19<I32,H19,I32)) -> 800 | J19: =G32+I19 -> 1000 | L19: und eine Kapazitätsausdehnung und/oder Fremdbezug
B20: 2 | C20: =IF($H$6=2,$B$6,IF($H$7=2,$B$7,IF($H$8=2,$B$8,IF($H$9=2,$B$9,$B$10)))) -> D | D20: Absatzmenge | E20: =IF(C20="A",$I$6,IF(C20="B",$I$7,IF(C20="C",$I$8,IF(C20="D",$I$9,$I$10)))) -> 8000 | F20: =IF(C20="A",$F$6,IF(C20="B",$F$7,IF(C20="C",$F$8,IF(C20="D",$F$9,$F$10)))) -> 10 | L20: empfohlen.
D21: Mindestmenge | E21: =IF(C20="A",$J$6,IF(C20="B",$J$7,IF(C20="C",$J$8,IF(C20="D",$J$9,$J$10)))) -> 0 | G21: =(E21*F20)/60 -> 0
D22: Restmenge | E22: =E20-E21 -> 8000 | H22: =(E22*F20)/60 -> 1333.333333 | I22: =IF(I32<0,0,IF(H22<(I32-I19),H22,(I32-I19))) -> 1333.333333 | J22: =J19+I22 -> 2333.333333 | L22: Nicht ausreichende Kapazitäten und nicht erfüllte
B23: 3 | C23: =IF($H$6=3,$B$6,IF($H$7=3,$B$7,IF($H$8=3,$B$8,IF($H$9=3,$B$9,$B$10)))) -> C | D23: Absatzmenge | E23: =IF(C23="A",$I$6,IF(C23="B",$I$7,IF(C23="C",$I$8,IF(C23="D",$I$9,$I$10)))) -> 8000 | F23: =IF(C23="A",$F$6,IF(C23="B",$F$7,IF(C23="C",$F$8,IF(C23="D",$F$9,$F$10)))) -> 8 | L23: Aufträge zur Produktion der Restmengen werden
D24: Mindestmenge | E24: =IF(C23="A",$J$6,IF(C23="B",$J$7,IF(C23="C",$J$8,IF(C23="D",$J$9,$J$10)))) -> 0 | G24: =(E24*F23)/60 -> 0 | L24: angezeigtund eine Erhöhung der Kapazität empfohlen.
D25: Restmenge | E25: =E23-E24 -> 8000 | H25: =(E25*F23)/60 -> 1066.666667 | I25: =IF(I32<0,0,IF(H25<(I32-I19-I22),H25,(I32-I19-I22))) -> 1066.666667 | J25: =J22+I25 -> 3400
B26: 4 | C26: =IF($H$6=4,$B$6,IF($H$7=4,$B$7,IF($H$8=4,$B$8,IF($H$9=4,$B$9,$B$10)))) -> B | D26: Absatzmenge | E26: =IF(C26="A",$I$6,IF(C26="B",$I$7,IF(C26="C",$I$8,IF(C26="D",$I$9,$I$10)))) -> 2000 | F26: =IF(C26="A",$F$6,IF(C26="B",$F$7,IF(C26="C",$F$8,IF(C26="D",$F$9,$F$10)))) -> 6 | L26: Ein positives Betriebsergebnis wird grün hinterlegt.
D27: Mindestmenge | E27: =IF(C26="A",$J$6,IF(C26="B",$J$7,IF(C26="C",$J$8,IF(C26="D",$J$9,$J$10)))) -> 0 | G27: =(E27*F26)/60 -> 0 | L27: Ein negative Betriebsergebnis wird rot hinterlegt und
D28: Restmenge | E28: =E26-E27 -> 2000 | H28: =(E28*F26)/60 -> 200 | I28: =IF(I32<0,0,IF(H28<(I32-I19-I22-I25),H28,(I32-I19-I22-I25))) -> 20 | J28: =J25+I28 -> 3420 | L28: der entsprechende Verlust angezeigt.
B29: 5 | C29: =IF($H$6=5,$B$6,IF($H$7=5,$B$7,IF($H$8=5,$B$8,IF($H$9=5,$B$9,$B$10)))) -> A | D29: Absatzmenge | E29: =IF(C29="A",$I$6,IF(C29="B",$I$7,IF(C29="C",$I$8,IF(C29="D",$I$9,$I$10)))) -> 12000 | F29: =IF(C29="A",$F$6,IF(C29="B",$F$7,IF(C29="C",$F$8,IF(C29="D",$F$9,$F$10)))) -> 4
D30: Mindestmenge | E30: =IF(C29="A",$J$6,IF(C29="B",$J$7,IF(C29="C",$J$8,IF(C29="D",$J$9,$J$10)))) -> 3000 | G30: =(E30*F29)/60 -> 200
D31: Restmenge | E31: =E29-E30 -> 9000 | H31: =(E31*F29)/60 -> 600 | I31: =IF(I32<0,0,IF(H31<(I32-I19-I22-I25-I28),H31,(I32-I19-I22-I25-I28))) -> 0 | J31: =J28+I31 -> 3420
F32: Summen | G32: =SUM(G17:G31) -> 200 | H32: =SUM(H17:H31) -> 4000 | I32: =H12-G32 -> 3220 | J32: =H12-J31 -> 0
B33: =IF(I32<0,"Produktionszeit für vertragliche Mindestmengen nicht ausreichend! Kapazitätsanpassung erforderlich oder Fremdbezug!","") -> 
B34: Der Wert in der grünen Zelle J32 ist ein Kontrollwert zur Analyse von Abweichungen zwischen Nettoarbeitszeit und Gesamtzeit. Er muss 0 sein.
B35: Die Werte für die Arbeitszeiten sind gerundet werden aber als ganze Zahlen ausgewiesen. Daher kann es zu kleineren Abweichungen bei der Zeitaddition kommen.
E37: produzierte | G37: Stück- | H37: Gesamt- | J37: nicht erfüllte
B38: Rang | C38: Produkt | D38: Mindestmenge | E38: Restmenge | F38: Gesamtmenge | G38: deckungsbeitrag | H38: deckungsbeitrag | I38: Fehlstunden | J38: Aufträge
B39: 1 | C39: =IF($H$6=1,$B$6,IF($H$7=1,$B$7,IF($H$8=1,$B$8,IF($H$9=1,$B$9,$B$10)))) -> E | D39: =E18 -> 0 | E39: =IF(E17>0,(I19*60)/F17,0) -> 4000 | F39: =D39+E39 -> 4000 | G39: =IF(C39="A",$E$6,IF(C39="b",$E$7,IF(C39="C",$E$8,IF(C39="d",$E$9,$E$10)))) -> 3.4 | H39: =F39*G39 -> 13600 | I39: =H19-I19 -> 0 | J39: =E17-F39 -> 0
B40: 2 | C40: =IF($H$6=2,$B$6,IF($H$7=2,$B$7,IF($H$8=2,$B$8,IF($H$9=2,$B$9,$B$10)))) -> D | D40: =E21 -> 0 | E40: =IF(E20>0,(I22*60)/F20,0) -> 8000 | F40: =D40+E40 -> 8000 | G40: =IF(C40="A",$E$6,IF(C40="b",$E$7,IF(C40="C",$E$8,IF(C40="d",$E$9,$E$10)))) -> 2.8 | H40: =F40*G40 -> 22400 | I40: =H22-I22 -> 0 | J40: =E20-F40 -> 0
B41: 3 | C41: =IF($H$6=3,$B$6,IF($H$7=3,$B$7,IF($H$8=3,$B$8,IF($H$9=3,$B$9,$B$10)))) -> C | D41: =E24 -> 0 | E41: =IF(E23>0,(I25*60)/F23,0) -> 8000 | F41: 8000 | G41: 2.2 | H41: 17600 | I41: =H25-I25 -> 0 | J41: =E23-F41 -> 0
B42: 4 | C42: =IF($H$6=4,$B$6,IF($H$7=4,$B$7,IF($H$8=4,$B$8,IF($H$9=4,$B$9,$B$10)))) -> B | D42: =E27 -> 0 | E42: =IF(E26>0,(I28*60)/F26,0) -> 200 | F42: 200 | G42: 1.6 | H42: 320 | I42: =H28-I28 -> 180 | J42: =E26-F42 -> 1800
B43: 5 | C43: =IF($H$6=5,$B$6,IF($H$7=5,$B$7,IF($H$8=5,$B$8,IF($H$9=5,$B$9,$B$10)))) -> A | D43: =E30 -> 3000 | E43: =IF(E29>0,(I31*60)/F29,0) -> 0 | F43: 3000 | G43: 1 | H43: 3000 | I43: =H31-I31 -> 600 | J43: =E29-F43 -> 9000 | K43: =ROUNDDOWN(SUM(J39:J43),0) -> 10800
H44: =SUM(H39:H43) -> 56920 | I44: =IF(K43>0,"Nicht erfüllte Aufträge!","") -> Nicht erfüllte Aufträge!
G45: fixe Kosten | H45: =J12 -> 40000 | I45: =IF(K43>0,"Kapazität erhöhen","") -> Kapazität erhöhen
G46: Betriebsergebnis | H46: =H44-H45 -> 16920 | I46: =IF(H46<0,"Verlust!","") -> 
